bitfinex-derivatives/quotes_ETHF0:USTF0_20240904
["timestamp","ask_amount","ask_price","bid_price","bid_amount"]
[1725446796722,0.00627117,2395.9,2395.8,0.77541]
[1725446797221,0.42367117,2395.9,2395.8,0.77541]
[1725446797918,0.42367117,2395.9,2395.6,0.41743]
[1725446797919,0.41744,2395.7,2395.6,0.41743]
[1725446799820,0.41745,2395.6,2395.5,0.3869]
[1725446800124,1.46108,2395.6,2395.5,0.3869]
[1725446801326,0.41745,2395.6,2395.5,0.3869]
[1725446802224,0.41745,2395.6,2395.5,0.41747]
[1725446802529,0.41745,2395.6,2395.5,0.79967]
[1725446802724,0.41744,2395.7,2395.6,0.41744]
[1725446803226,1.04979117,2395.9,2395.5,0.3822]
[1725446803425,0.42368117,2395.9,2395.8,0.41741]
[1725446803726,0.41742,2395.8,2395.7,0.41742]
[1725446804928,0.41744,2395.7,2395.6,0.41743]
[1725446807434,1.04363,2395.6,2395.4,3.968]
[1725446807629,0.41747,2395.5,2395.4,0.358]
[1725446808038,0.41747,2395.5,2395.4,0.77548]
[1725446808329,1.43523,2395.6,2395.5,0.41745]
[1725446808330,0.41746,2395.6,2395.5,0.41745]
[1725446808929,0.41743,2395.8,2395.7,0.41743]
[1725446809429,0.41743,2395.8,2395.5,0.3646]
[1725446809430,0.42368117,2395.9,2395.8,0.41741]
[1725446811031,0.42368117,2395.9,2395.7,0.41741]
[1725446811032,0.41742,2395.8,2395.7,0.41741]
[1725446812529,0.00627117,2395.9,2395.8,0.41741]
[1725446812723,0.42367117,2395.9,2395.8,0.41741]
[1725446813229,0.41742,2395.8,2395.7,0.41743]
[1725446814241,0.42368117,2395.9,2395.8,0.41741]
[1725446814733,0.00627117,2395.9,2395.8,0.41741]
[1725446815433,0.42367117,2395.9,2395.8,0.41741]
[1725446816727,0.00627117,2395.9,2395.8,0.41741]
[1725446817633,0.42367117,2395.9,2395.8,0.41741]
[1725446818338,0.00627117,2395.9,2395.8,0.41741]
[1725446818524,0.00627117,2395.9,2395.8,0.80171]
[1725446819032,0.00627117,2395.9,2395.8,8.58531]
[1725446820230,0.42367117,2395.9,2395.6,6.8178]
[1725446820437,0.42367117,2395.9,2395.8,0.41741]
[1725446821244,0.00627117,2395.9,2395.8,0.41741]
[1725446821939,0.00627117,2395.9,2395.6,3.2078]
[1725446821940,0.41743,2395.7,2395.6,3.2078]
[1725446822137,1.04354,2395.8,2395.2,6.8178]
[1725446822138,4.63306,2395.8,2395.2,6.8178]
[1725446822326,4.63306,2395.8,2395.2,3.61]
[1725446822327,0.4175,2395.3,2395.2,3.61]
[1725446822528,1.04367,2395.5,2395.0,4.02755]
[1725446822529,0.41752,2395.2,2395.0,4.02755]
[1725446822727,0.41751,2395.3,2395.0,3.61]
[1725446823235,0.41751,2395.3,2395.0,4.02754]
[1725446823433,0.41751,2395.3,2395.1,0.41753]
[1725446823633,0.4175,2395.4,2395.2,0.41751]
[1725446823841,0.4175,2395.3,2395.2,3.61]
[1725446824337,0.41753,2395.2,2395.0,4.02755]
[1725446824734,0.41753,2395.1,2395.0,3.61]
[1725446825634,0.7471,2395.3,2395.0,3.61]
[1725446825841,4.25153,2395.4,2395.0,4.02755]
[1725446825842,0.41752,2395.2,2395.0,4.02755]
[1725446826734,4.25153,2395.4,2395.0,3.61]
[1725446826938,0.41753,2395.2,2395.0,4.02755]
[1725446827139,0.41753,2395.1,2395.0,3.61]
[1725446828633,0.41753,2395.1,2394.8,0.00627117]
[1725446828634,1.4615,2394.9,2394.8,0.00627117]
[1725446828947,1.46175,2394.5,2394.4,0.097]
[1725446829147,1.04411,2394.5,2394.1,4.7803]
[1725446829447,1.04411,2394.5,2393.9,3.61]
[1725446829448,1.0442,2394.3,2393.9,3.61]
[1725446829640,0.41772,2394.1,2394.0,0.41773]
[1725446830250,0.41774,2393.9,2393.8,0.00627117]
[1725446830539,0.41783,2393.4,2393.3,0.097]
[1725446830743,0.41788,2393.2,2393.0,0.4179]
[1725446830937,0.41788,2393.2,2393.0,0.41789]
[1725446831137,0.41786,2393.3,2393.1,3.61]
[1725446832248,0.41786,2393.3,2393.1,4.02788]
[1725446832637,0.41786,2393.3,2393.1,3.61]
[1725446832843,0.41782,2393.5,2393.3,0.41784]
[1725446833047,0.41783,2393.4,2393.3,3.61]
[1725446833239,0.41782,2393.5,2393.3,4.02785]
[1725446833435,0.41781,2393.6,2393.4,0.41783]
[1725446833640,0.3733,2393.7,2393.3,3.61]
[1725446833843,0.41783,2393.5,2393.3,3.61]
[1725446834043,0.41783,2393.4,2393.1,3.61]
[1725446834344,0.41784,2393.4,2393.1,3.61]
[1725446834548,0.41784,2393.4,2393.2,0.41786]
[1725446835247,3.2078,2393.6,2393.0,0.00627117]
[1725446835441,1.04461,2393.4,2393.0,0.00627117]
[1725446835951,3.2078,2393.3,2393.0,0.00627117]
[1725446836446,1.4626,2393.1,2393.0,0.00627117]
[1725446836939,5.641,2393.1,2393.0,0.00627117]
[1725446837141,4.1784,2393.1,2393.0,0.00627117]
[1725446837448,0.41784,2393.4,2393.0,0.00627117]
[1725446837747,0.41784,2393.4,2393.0,0.37667117]
[1725446838248,0.41784,2393.4,2393.1,0.41788]
[1725446838637,4.53483,2393.5,2393.2,0.41786]
[1725446838843,3.2078,2393.6,2393.5,0.41781]
[1725446839048,4.117,2393.8,2393.6,0.41779]
[1725446839243,4.117,2393.8,2393.7,0.41778]
[1725446839446,4.117,2393.8,2393.6,0.79189]
[1725446839949,4.117,2393.8,2393.7,0.41778]
[1725446840144,4.117,2393.8,2393.6,0.79188]
[1725446840849,0.41779,2393.7,2393.4,3.62562]
[1725446841148,4.117,2393.8,2393.4,0.41783]
[1725446841548,0.4178,2393.6,2393.3,3.9841]
[1725446841843,0.4178,2393.6,2393.4,0.41783]
[1725446842247,0.41782,2393.5,2393.3,4.40194]
[1725446842549,0.41788,2393.1,2393.0,0.00627117]
[1725446844761,1.4626,2393.1,2393.0,0.00627117]
[1725446845056,8.8488,2393.1,2393.0,0.00627117]
[1725446845245,14.8488,2393.1,2393.0,0.00627117]
[1725446846043,8.8488,2393.1,2393.0,0.00627117]
[1725446846447,14.8488,2393.1,2393.0,0.00627117]
[1725446846847,8.8488,2393.1,2393.0,0.00627117]
[1725446848351,15.89352,2393.1,2393.0,1.17e-06]
[1725446848553,15.89352,2393.1,2392.4,0.097]
[1725446848554,1.46297,2392.5,2392.4,0.097]
[1725446848750,0.418,2392.5,2391.9,3.9779]
[1725446848961,0.418,2392.5,2392.3,0.41802]
[1725446849256,0.41801,2392.4,2392.2,0.41803]
[1725446849856,0.00627117,2392.5,2392.4,0.41801]
[1725446850747,0.097,2393.2,2392.4,9.5568]
[1725446850946,0.097,2393.4,2393.1,6.8178]
[1725446851147,3.2078,2393.7,2393.1,6.8178]
[1725446851148,0.4178,2393.6,2393.1,6.8178]
[1725446851459,0.4178,2393.6,2393.3,0.41784]
[1725446851756,0.41781,2393.5,2393.2,0.78366]
[1725446851959,0.41781,2393.6,2393.2,0.78366]
[1725446852144,0.41782,2393.5,2393.2,0.78366]
[1725446852349,0.41781,2393.6,2393.2,0.78366]
[1725446852548,0.41781,2393.6,2393.3,0.41785]
[1725446852746,0.41781,2393.6,2393.2,0.78365]
[1725446852956,0.00627117,2393.7,2393.5,0.4178]
[1725446853265,0.00627117,2393.7,2393.5,0.41781]
[1725446853458,0.00627117,2393.7,2393.4,0.00627117]
[1725446853653,0.00627117,2393.7,2393.5,0.4178]
[1725446853955,0.00627117,2393.7,2393.6,0.4178]
[1725446854852,0.00627117,2393.7,2393.6,4.5954]
[1725446855056,0.00627117,2393.7,2393.6,11.6399]
[1725446855251,0.00627117,2393.7,2393.6,10.5954]
[1725446855751,0.00627117,2393.7,2393.6,4.5954]
[1725446855954,0.00627117,2393.7,2393.6,5.6399]
[1725446857061,0.097,2394.3,2394.0,0.41771]
[1725446857249,0.41767,2394.3,2394.0,3.61]
[1725446857762,0.41767,2394.3,2394.0,4.02772]
[1725446858467,0.41767,2394.3,2394.0,3.61]
[1725446859762,0.41767,2394.3,2394.0,4.02773]
[1725446860861,3.21407117,2394.4,2394.0,4.02773]
[1725446861064,0.41768,2394.3,2394.0,4.02773]
[1725446862165,0.41768,2394.3,2394.0,3.61]
[1725446862469,3.63174117,2394.4,2394.0,4.02772]
[1725446862664,0.00627117,2394.4,2394.3,3.61]
[1725446862857,0.00627117,2394.4,2394.3,4.02767]
[1725446863561,0.00627117,2394.4,2394.3,3.61]
[1725446864764,0.00627117,2394.4,2393.6,1.25347]
[1725446864765,0.41775,2393.9,2393.7,3.2078]
[1725446864952,0.41775,2393.9,2393.6,0.41779]
[1725446865455,0.41775,2393.9,2393.5,4.0278]
[1725446865656,1.04438,2393.9,2393.5,3.61]
[1725446865855,0.41776,2393.8,2393.5,4.02781]
[1725446867159,0.41778,2393.7,2393.5,3.61]
[1725446867666,44.4343,2394.1,2393.5,3.61]
[1725446867967,0.41772,2394.1,2393.9,3.61]
[1725446868264,0.41773,2394.0,2393.9,3.61]
[1725446868765,4.5347,2394.2,2393.9,4.02774]
[1725446868967,0.4177,2394.2,2393.9,4.02774]
[1725446869665,0.41772,2394.1,2393.9,3.61]
[1725446870664,0.41772,2394.1,2393.9,4.02774]
[1725446871669,0.41772,2394.1,2393.9,3.61]
[1725446872565,0.41772,2394.1,2393.9,4.02774]
[1725446874667,0.41772,2394.1,2393.9,0.41774]
[1725446875870,0.4177,2394.2,2394.0,0.41773]
[1725446876070,0.37047117,2394.4,2394.0,0.41773]
[1725446876071,0.00627117,2394.4,2394.3,0.41767]
[1725446876371,0.00627117,2394.4,2394.0,0.41772]
[1725446876372,0.4177,2394.2,2394.0,0.41772]
[1725446876568,0.41769,2394.2,2394.0,0.41772]
[1725446876871,0.42394117,2394.4,2394.1,0.4177]
[1725446877062,0.00627117,2394.4,2393.9,6.8178]
[1725446877263,0.42394117,2394.4,2394.1,0.4177]
[1725446877467,0.42394117,2394.4,2394.2,0.41769]
[1725446877766,0.42394117,2394.4,2394.1,0.4177]
[1725446877976,0.42394117,2394.4,2394.2,0.41769]
[1725446878667,3.63174117,2394.4,2394.2,0.41769]
[1725446879661,3.63174117,2394.4,2394.0,0.3583]
[1725446879662,0.00627117,2394.4,2394.3,0.80987]
[1725446879867,0.42393117,2394.4,2394.3,0.3922]
[1725446880566,0.42393117,2394.4,2394.3,0.80987]
[1725446880870,0.00627117,2394.4,2394.3,0.80987]
[1725446881172,0.00627117,2394.4,2393.9,7.86216]
[1725446881173,7.39087117,2394.4,2393.9,4.02774]
[1725446881361,1.04419,2394.3,2393.9,3.61]
[1725446881560,0.41771,2394.1,2394.0,0.41773]
[1725446881961,1.04419,2394.3,2393.8,0.7632]
[1725446882272,0.41774,2393.9,2393.8,0.7632]
[1725446883376,0.41777,2393.8,2393.7,0.41778]
[1725446883575,0.41777,2393.8,2393.6,1.16708]
[1725446883773,0.41778,2393.7,2393.6,0.7493]
[1725446883969,0.41781,2393.5,2393.4,0.00627117]
[1725446885784,0.41781,2393.5,2393.4,0.42410117]
[1725446885972,0.41781,2393.6,2393.5,0.41781]
[1725446886276,1.04439,2393.9,2393.6,0.41779]
[1725446886477,0.41778,2393.7,2393.5,3.61]
[1725446886976,1.04439,2393.9,2393.4,0.36377117]
[1725446886977,0.4178,2393.6,2393.4,0.42409117]
[1725446887177,0.41781,2393.5,2393.4,0.00627117]
[1725446887680,1.46235,2393.5,2393.4,0.00627117]
[1725446887973,12.68529,2393.5,2393.4,0.00627117]
[1725446888677,16.29529,2393.5,2393.4,0.00627117]
[1725446888871,0.4179,2393.0,2392.9,0.209]
[1725446889073,1.04484,2392.9,2392.5,4.02799]
[1725446889276,0.41791,2393.0,2392.8,0.41793]
[1725446889472,0.41791,2393.0,2392.9,0.3752]
[1725446891178,0.41793,2392.9,2392.7,4.03422117]
[1725446892978,0.7897,2393.1,2392.9,0.41792]
[1725446893181,1.05096117,2393.2,2392.7,3.61627117]
[1725446893380,1.43236117,2393.2,2392.7,3.61627117]
[1725446893575,1.05096117,2393.2,2392.7,3.61627117]
[1725446893782,0.4179,2393.0,2392.8,0.41793]
[1725446893981,0.41792,2392.9,2392.7,4.40551117]
[1725446894182,0.41794,2392.8,2392.7,0.00627117]
[1725446895279,1.46279,2392.8,2392.7,0.00627117]
[1725446897191,5.64199,2392.8,2392.7,0.00627117]
[1725446897981,1.46279,2392.8,2392.7,0.00627117]
[1725446898786,3.2078,2392.9,2392.7,0.00627117]
[1725446898993,0.41789,2393.1,2392.9,0.41791]
[1725446899192,0.41788,2393.1,2392.9,0.41791]
[1725446899396,0.41788,2393.1,2393.0,0.3692]
[1725446900082,0.41792,2393.0,2392.8,0.77253]
[1725446900285,0.41792,2393.0,2392.8,1.14173]
[1725446900495,0.41792,2392.9,2392.8,0.7238]
[1725446900991,1.04473,2393.1,2392.8,0.7238]
[1725446901283,0.41792,2392.9,2392.8,0.7238]
[1725446901481,0.41792,2392.9,2392.8,0.3692]
[1725446901700,0.41794,2392.8,2392.7,0.00627117]
[1725446902892,1.46279,2392.8,2392.7,0.00627117]
[1725446903997,9.89464,2392.8,2392.7,0.00627117]
[1725446904197,15.89464,2392.8,2392.7,0.00627117]
[1725446904495,15.89464,2392.8,2392.1,0.7773]
[1725446904496,0.41804,2392.2,2392.1,0.7773]
[1725446905003,1.46315,2392.2,2392.1,0.7773]
[1725446905701,0.41808,2392.0,2391.9,0.00627117]
[1725446906103,3.2078,2392.2,2391.9,0.00627117]
[1725446906292,0.41806,2392.1,2391.9,0.42435117]
[1725446906493,1.04512,2392.2,2391.9,0.00627117]
[1725446906694,0.41808,2392.0,2391.9,0.00627117]
[1725446907911,0.41807,2392.1,2391.9,0.42436117]
[1725446908599,0.41808,2392.0,2391.9,0.00627117]
[1725446909801,0.41807,2392.1,2391.9,0.42436117]
[1725446910309,1.41273,2392.4,2391.9,0.00627117]
[1725446910504,0.41806,2392.1,2392.0,0.41807]
[1725446910709,0.41805,2392.2,2392.0,0.41807]
[1725446911007,1.41273,2392.4,2392.0,0.41807]
[1725446911207,1.04507,2392.3,2391.9,0.00627117]
[1725446911408,0.41807,2392.1,2392.0,0.41808]
[1725446911999,0.41807,2392.1,2391.9,0.42435117]
[1725446912508,0.41808,2392.0,2391.9,0.00627117]
[1725446913997,1.46328,2392.0,2391.9,0.00627117]
[1725446914306,1.46358,2391.5,2391.4,0.209]
[1725446914501,1.04553,2391.3,2390.9,0.7497]
[1725446914699,3.62605,2391.0,2390.9,0.7497]
[1725446915097,3.62605,2391.0,2390.9,0.3565]
[1725446915306,1.04568,2390.9,2390.5,0.3932]
[1725446915510,1.04585,2390.5,2390.0,0.209]
[1725446915708,0.41843,2390.0,2389.8,0.3565]
[1725446916007,3.61,2390.5,2389.9,6.8178]
[1725446916008,4.117,2390.4,2389.9,6.8178]
[1725446916205,4.117,2390.4,2390.2,3.61]
[1725446916397,4.117,2390.4,2390.0,3.61]
[1725446916599,4.53536,2390.4,2390.0,3.61]
[1725446916805,4.117,2390.4,2390.0,3.61]
[1725446917104,4.53537,2390.4,2390.0,3.61]
[1725446917409,3.5268,2390.9,2390.2,6.8178]
[1725446917711,3.5268,2390.9,2390.2,3.61]
[1725446917712,0.41835,2390.5,2390.2,3.61]
[1725446917908,3.2078,2390.7,2390.0,0.41842]
[1725446918108,3.2078,2390.7,2389.9,8.4073]
[1725446918310,0.4183,2390.8,2390.3,0.41836]
[1725446918512,3.8879,2390.9,2390.1,4.82]
[1725446918513,0.41831,2390.7,2390.1,4.82]
[1725446918823,3.8879,2390.9,2390.6,0.41831]
[1725446919014,3.8879,2390.9,2390.5,0.41833]
[1725446919206,4.30618,2390.9,2390.5,0.41833]
[1725446919398,3.8879,2390.9,2390.6,0.41831]
[1725446919598,0.00627117,2391.2,2390.5,3.2078]
[1725446919803,0.00627117,2391.2,2390.6,0.3813]
[1725446920003,3.2078,2391.0,2390.8,0.41828]
[1725446920205,0.41824,2391.1,2390.8,0.41828]
[1725446920509,1.05184117,2391.2,2390.4,4.82]
[1725446920709,1.05184117,2391.2,2390.5,3.2078]
[1725446921016,1.05184117,2391.2,2390.4,5.2115]
[1725446921017,0.41826,2391.0,2390.7,0.4183]
[1725446921706,0.41827,2390.9,2390.7,0.4183]
[1725446921911,0.41827,2390.9,2390.6,0.41831]
[1725446922114,1.04565,2391.0,2390.5,0.41833]
[1725446922315,0.4183,2390.8,2390.6,0.41832]
[1725446922616,0.41829,2390.8,2390.6,0.41832]
[1725446922815,0.41828,2390.9,2390.6,0.41832]
[1725446923718,0.41828,2390.9,2390.6,0.41831]
[1725446923916,0.41829,2390.8,2390.6,0.41831]
[1725446924119,0.41829,2390.8,2390.5,3.62613]
[1725446924416,0.41835,2390.5,2390.3,0.3613]
[1725446924913,0.3691,2390.6,2390.3,0.3613]
[1725446925120,0.3691,2390.6,2390.4,5.23834]
[1725446925307,0.3691,2390.6,2390.5,0.41834]
[1725446925508,3.5268,2390.9,2390.6,0.41832]
[1725446925714,0.41829,2390.8,2390.6,0.41832]
[1725446926107,0.41831,2390.7,2390.5,0.41833]
[1725446926917,0.4183,2390.8,2390.5,0.41833]
[1725446927225,6.7346,2390.9,2390.6,0.41831]
[1725446927412,0.41829,2390.8,2390.6,0.41831]
[1725446927815,3.94507,2390.9,2390.7,0.41829]
[1725446928118,3.94507,2390.9,2390.4,3.2078]
[1725446928119,3.94508,2390.9,2390.4,3.2078]
[1725446928319,0.41829,2390.8,2390.6,0.41831]
[1725446928522,4.25345,2391.0,2390.3,0.3613]
[1725446928724,0.41833,2390.6,2390.3,0.77966]
[1725446928911,1.41662,2390.8,2390.4,0.41835]
[1725446929116,0.41834,2390.5,2390.3,0.77966]
[1725446929317,0.41833,2390.6,2390.4,0.41836]
[1725446929513,0.41831,2390.7,2390.5,0.41833]
[1725446929724,0.4183,2390.8,2390.6,0.41831]
[1725446929920,0.4183,2390.7,2390.5,0.41833]
[1725446930420,0.4183,2390.7,2390.4,3.2078]
[1725446930636,3.5268,2390.9,2390.7,0.4183]
[1725446930832,3.94508,2390.9,2390.7,0.4183]
[1725446931122,3.94508,2390.9,2390.6,0.41832]
[1725446931123,0.41832,2390.7,2390.6,0.41832]
[1725446931313,0.41832,2390.7,2390.4,3.5722]
[1725446931314,3.5268,2390.9,2390.4,9.43809]
[1725446931513,3.5268,2390.9,2390.8,0.41829]
[1725446931816,0.41829,2390.8,2390.4,8.3922]
[1725446932022,0.41828,2390.9,2390.8,0.41829]
[1725446932227,1.41469,2391.1,2390.4,8.3922]
[1725446932423,0.4183,2390.7,2390.6,0.41831]
[1725446932722,0.3885,2391.0,2390.4,8.3922]
[1725446932923,0.41826,2391.0,2390.5,1.04585]
[1725446933128,0.41827,2390.9,2390.8,0.41828]
[1725446933528,0.41825,2391.0,2390.9,0.41826]
[1725446934025,1.05183117,2391.2,2390.9,0.41826]
[1725446934326,0.00627117,2391.2,2391.1,0.41823]
[1725446934922,0.00627117,2391.2,2391.1,16.46622]
[1725446935227,0.41814,2391.7,2391.6,0.41815]
[1725446935627,0.41814,2391.7,2391.6,0.41814]
[1725446935926,0.3632,2391.8,2391.4,0.3578]
[1725446935927,0.78132,2391.8,2391.4,0.3578]
[1725446936128,0.78759117,2391.8,2391.6,0.41814]
[1725446936521,0.36947117,2391.8,2391.6,0.41814]
[1725446936725,0.78759117,2391.8,2391.6,0.41814]
[1725446937119,0.42439117,2391.8,2391.6,0.41814]
[1725446937320,0.42439117,2391.8,2391.4,0.36407117]
[1725446937536,0.41813,2391.7,2391.6,0.41814]
[1725446937828,0.41813,2391.7,2391.5,0.41815]
[1725446938232,0.41813,2391.7,2391.6,0.41815]
[1725446938423,0.42439117,2391.8,2391.6,0.41815]
[1725446938624,0.00627117,2391.8,2391.7,0.41813]
[1725446940027,0.00627117,2391.8,2391.7,11.50959]
[1725446940325,3.5268,2392.1,2392.0,0.41808]
[1725446940533,1.0452,2392.0,2391.5,3.2078]
[1725446940726,3.9746,2392.0,2391.5,3.2078]
[1725446940928,0.41815,2391.6,2391.5,3.62595]
[1725446941128,0.41815,2391.6,2391.5,3.2078]
[1725446941432,0.41815,2391.6,2391.5,7.3894]
[1725446941734,0.41815,2391.6,2391.5,3.2078]
[1725446942031,1.05157117,2391.8,2391.5,3.62596]
[1725446942032,0.41814,2391.7,2391.5,3.62596]
[1725446942233,0.41814,2391.7,2391.6,0.41815]
[1725446942428,0.41815,2391.6,2391.5,3.2078]
[1725446943336,1.46352,2391.6,2391.5,3.2078]
[1725446943523,0.41815,2391.6,2391.5,3.2078]
[1725446944237,0.41814,2391.7,2391.5,3.2078]
[1725446944429,0.00627117,2391.8,2391.6,0.41815]
[1725446944934,0.41814,2391.7,2391.5,4.01195]
[1725446945130,0.41815,2391.6,2391.5,4.01195]
[1725446945329,0.41815,2391.6,2391.5,3.2078]
[1725446945533,1.46358,2391.5,2391.4,0.00627117]
[1725446945832,1.84948,2391.5,2391.4,0.00627117]
[1725446946136,2.21508,2391.5,2391.4,0.00627117]
[1725446946334,1.0456,2391.1,2390.7,0.209]
[1725446946529,8.1409,2391.5,2390.6,0.3558]
[1725446946530,1.04558,2391.2,2390.6,0.3558]
[1725446946726,0.3859,2391.0,2390.9,0.41827]
[1725446947244,0.80415,2391.0,2390.9,4.1824]
[1725446947426,0.3859,2391.0,2390.6,0.3558]
[1725446947738,0.4183,2390.7,2390.6,0.36207117]
[1725446947933,0.41829,2390.8,2390.6,0.36207117]
[1725446948635,0.4183,2390.7,2390.6,0.00627117]
[1725446949027,5.64727,2390.7,2390.6,0.00627117]
[1725446949232,0.41844,2390.0,2389.7,4.82]
[1725446949532,0.41843,2390.0,2389.6,4.39818]
[1725446949740,0.41842,2390.1,2389.7,0.41848]
[1725446950437,0.41842,2390.1,2389.9,4.82]
[1725446950438,0.00627117,2390.1,2389.9,4.82]
[1725446950735,0.00627117,2390.1,2390.0,4.98453]
[1725446950939,0.00627117,2390.1,2390.0,10.98453]
[1725446951642,0.3853,2390.5,2390.0,10.98453]
[1725446951643,0.209,2390.8,2390.0,10.5661]
[1725446951842,0.209,2390.8,2390.5,0.41833]
[1725446951843,0.41829,2390.8,2390.5,0.41833]
[1725446952136,0.381,2390.9,2390.2,3.2078]
[1725446952343,0.41835,2390.5,2390.2,3.62619]
[1725446952737,0.00627117,2390.6,2390.3,0.41837]
[1725446952937,0.00627117,2390.6,2390.5,0.41834]
[1725446953145,0.00627117,2390.6,2390.4,0.41835]
[1725446953839,0.00627117,2390.6,2390.5,0.41834]
[1725446954038,0.00627117,2390.6,2390.4,0.41835]
[1725446954334,0.42459117,2390.6,2390.4,0.41835]
[1725446954543,0.00627117,2390.6,2390.4,0.41835]
[1725446954747,0.00627117,2390.6,2390.5,0.41834]
[1725446955641,0.00627117,2390.6,2390.5,4.60154]
[1725446955847,0.41822,2391.2,2391.0,0.41825]
[1725446956356,0.41824,2391.1,2390.9,0.41826]
[1725446956548,0.41822,2391.2,2391.0,0.41825]
[1725446956743,0.37427117,2391.3,2390.9,0.41826]
[1725446956944,0.37427117,2391.3,2390.6,5.5422]
[1725446957241,0.41829,2390.8,2390.6,5.96052]
[1725446957443,0.4183,2390.8,2390.6,1.14052]
[1725446957642,3.2078,2391.1,2390.7,0.4183]
[1725446957643,0.41828,2390.9,2390.7,0.4183]
[1725446957840,0.41826,2391.0,2390.8,0.41829]
[1725446958341,1.41980117,2391.3,2390.7,0.4183]
[1725446958342,1.04557,2391.2,2390.7,0.4183]
[1725446958540,1.04557,2391.2,2390.8,0.41828]
[1725446958541,0.41826,2391.0,2390.8,0.41828]
[1725446958733,0.41827,2390.9,2390.7,0.4183]
[1725446959137,0.41829,2390.8,2390.6,0.78202]
[1725446960249,0.4183,2390.7,2390.2,3.5791]
[1725446960448,0.3843,2390.7,2390.6,0.41832]
[1725446961047,0.3805,2391.0,2390.7,0.41829]
[1725446961344,1.18306,2391.0,2390.8,0.41828]
[1725446961843,1.18306,2391.0,2390.6,0.41832]
[1725446961844,0.4183,2390.8,2390.6,0.41832]
[1725446962447,0.41832,2390.7,2390.4,4.82]
[1725446962645,0.41832,2390.7,2390.5,0.41834]
[1725446963036,1.04568,2390.9,2390.4,5.23834]
[1725446963037,0.41832,2390.6,2390.4,5.23834]
[1725446963443,0.41831,2390.7,2390.5,0.41833]
[1725446963639,0.4183,2390.8,2390.4,4.82]
[1725446963943,0.7648,2391.0,2390.4,4.82]
[1725446963944,0.3843,2391.0,2390.4,4.82]
[1725446964146,0.41828,2390.9,2390.4,5.86589]
[1725446964350,0.41828,2390.9,2390.8,0.41829]
[1725446964539,0.80256,2391.0,2390.9,0.41827]
[1725446964854,0.80255,2391.0,2390.8,0.41827]
[1725446965654,0.41832,2390.6,2390.5,0.41833]
[1725446965949,3.2078,2390.8,2390.2,3.2078]
[1725446966151,0.36,2390.5,2390.2,0.41838]
[1725446966539,0.41837,2390.4,2390.2,0.41838]
[1725446966744,0.36,2390.5,2390.3,0.41837]
[1725446966947,0.36,2390.5,2390.1,0.00627117]
[1725446967152,0.77834,2390.5,2390.3,0.41836]
[1725446967843,0.41839,2390.3,2390.1,0.42467117]
[1725446968152,0.41839,2390.3,2390.1,0.00627117]
[1725446968346,0.41837,2390.4,2390.3,0.41837]
[1725446969258,0.36,2390.5,2390.4,0.41836]
[1725446969448,0.4183,2390.8,2390.4,5.2291]
[1725446969647,1.04563,2391.0,2390.7,0.41829]
[1725446969846,0.41828,2390.9,2390.8,0.41829]
[1725446970042,0.41826,2391.0,2390.8,0.41829]
[1725446970355,0.41825,2391.0,2390.9,0.41826]
[1725446970852,0.41827,2390.9,2390.7,0.41829]
[1725446971360,0.4183,2390.8,2390.6,0.41832]
[1725446971552,0.00627117,2391.3,2391.2,0.41822]
[1725446971750,0.42448117,2391.3,2391.1,0.41822]
[1725446971949,0.00627117,2391.3,2391.2,0.41822]
[1725446974153,0.00627117,2391.3,2391.0,8.3873]
[1725446974154,0.00627117,2391.3,2391.0,3.5673]
[1725446974350,0.00627117,2391.3,2391.2,0.41822]
[1725446975448,0.00627117,2391.3,2391.1,0.41823]
[1725446975653,0.42448117,2391.3,2391.0,3.98554]
[1725446975853,0.41822,2391.2,2391.0,3.98554]
[1725446976154,1.46382,2391.1,2391.0,3.2078]
[1725446976357,0.80883,2391.1,2391.0,3.2078]
[1725446976955,6.03682,2391.1,2391.0,3.2078]
[1725446977256,1.04563,2391.0,2390.4,0.209]
[1725446977462,0.41832,2390.6,2390.4,0.41835]
[1725446977647,1.04577,2390.7,2390.3,3.2078]
[1725446977851,0.41835,2390.5,2390.3,0.41837]
[1725446978056,1.43567,2390.7,2390.4,0.41836]
[1725446978057,0.41833,2390.6,2390.4,0.41836]
[1725446978658,0.3899,2390.7,2390.3,0.41836]
[1725446978865,0.41834,2390.6,2390.3,0.41836]
[1725446979048,0.41834,2390.6,2390.4,0.41835]
[1725446979454,0.3899,2390.7,2390.5,0.41834]
[1725446979455,0.80821,2390.7,2390.5,0.41834]
[1725446979761,0.41833,2390.6,2390.4,0.41835]
[1725446979953,0.41832,2390.7,2390.5,0.41834]
[1725446980351,0.41832,2390.6,2390.4,0.41834]
[1725446981148,3.5268,2390.9,2390.4,1.0459]
[1725446981459,0.41829,2390.8,2390.3,4.61302]
[1725446981761,3.5268,2390.9,2390.8,0.41829]
[1725446981953,1.4362,2391.1,2390.7,0.4183]
[1725446982259,0.41827,2390.9,2390.8,0.41828]
[1725446982558,0.41827,2390.9,2390.7,0.41829]
[1725446982954,0.41826,2391.0,2390.8,0.41829]
[1725446983360,0.4183,2390.8,2390.6,0.41832]
[1725446983653,1.04569,2390.9,2390.6,0.41832]
[1725446983654,0.4183,2390.7,2390.6,0.41832]
[1725446983857,0.4183,2390.7,2390.5,0.41833]
[1725446984059,0.3715,2390.6,2390.3,3.2078]
[1725446984355,0.41829,2390.8,2390.6,0.41832]
[1725446984763,0.41828,2390.9,2390.7,0.4183]
[1725446985059,0.41827,2390.9,2390.7,0.41829]
[1725446985261,0.4183,2390.8,2390.6,0.41831]